bitfinex-derivatives/quotes_BTCF0:USTF0_20251204
["timestamp","ask_amount","ask_price","bid_price","bid_amount"]
[1764818141832,0.03009876,93737.0,93736.0,0.11335097]
[1764818142422,0.06919876,93737.0,93736.0,0.11335097]
[1764818143327,0.12191596,93737.0,93736.0,0.11335097]
[1764818143833,0.12191596,93737.0,93736.0,0.01802097]
[1764818144132,0.14950984,93737.0,93736.0,0.01802097]
[1764818144331,0.0758684,93727.0,93726.0,0.00026674]
[1764818144534,0.13346228,93727.0,93726.0,0.09845455]
[1764818146131,0.12886228,93727.0,93726.0,0.09845455]
[1764818147027,0.13086228,93727.0,93726.0,0.09845455]
[1764818149629,0.13086228,93727.0,93726.0,0.05722455]
[1764818149834,0.13086228,93727.0,93726.0,0.09506455]
[1764818152332,0.032,93727.0,93726.0,0.09506455]
[1764818153340,0.088,93727.0,93726.0,0.09506455]
[1764818155834,0.06,93727.0,93726.0,0.10573305]
[1764818156034,0.088,93727.0,93726.0,0.09506455]
[1764818157029,0.06,93727.0,93726.0,0.10573305]
[1764818157243,0.032,93727.0,93726.0,0.10573305]
[1764818157640,0.032,93727.0,93726.0,0.09506455]
[1764818157842,0.088,93727.0,93726.0,0.09506455]
[1764818160051,0.488,93727.0,93726.0,0.01584455]
[1764818160248,0.11498592,93727.0,93726.0,0.01584455]
[1764818160439,0.11498592,93727.0,93726.0,0.09142455]
[1764818160742,0.088,93727.0,93726.0,0.09142455]
[1764818161548,0.06,93727.0,93726.0,0.09142455]
[1764818161844,0.032,93727.0,93726.0,0.09142455]
[1764818162234,0.03,93727.0,93726.0,0.09142455]
[1764818162441,0.035,93727.0,93726.0,0.09242455]
[1764818163047,0.034,93727.0,93726.0,0.09242455]
[1764818163550,0.06009876,93737.0,93736.0,0.10095]
[1764818163738,0.03009876,93737.0,93736.0,0.10095]
[1764818165244,0.06747876,93737.0,93736.0,0.10095]
[1764818165443,0.10927876,93737.0,93736.0,0.10095]
[1764818165650,0.11027876,93737.0,93736.0,0.10095]
[1764818169354,0.11027876,93737.0,93736.0,0.03941]
[1764818169651,0.11027876,93737.0,93736.0,0.07758]
[1764818170547,0.07518,93729.0,93728.0,0.10095]
[1764818170746,0.11518,93729.0,93728.0,0.10095]
[1764818172241,0.11618,93729.0,93728.0,0.07758]
[1764818172446,0.11618,93729.0,93728.0,0.03941]
[1764818172642,0.11618,93729.0,93726.0,0.01584455]
[1764818172643,0.07518,93727.0,93726.0,0.01584455]
[1764818172847,0.10518,93727.0,93726.0,0.01584455]
[1764818174165,0.10518,93727.0,93726.0,0.09342455]
[1764818174646,0.10518,93727.0,93726.0,0.05525455]
[1764818174852,0.10618,93727.0,93726.0,0.01584455]
[1764818175942,0.10618,93727.0,93726.0,0.00272945]
[1764818176152,0.07518,93713.0,93712.0,0.10169]
[1764818176354,0.10518,93713.0,93712.0,0.10169]
[1764818177154,0.10518,93713.0,93712.0,0.11787586]
[1764818177659,0.10518,93713.0,93712.0,0.11887586]
[1764818177955,0.10518,93713.0,93712.0,0.12187586]
[1764818178857,0.03,93713.0,93712.0,0.12187586]
[1764818179857,0.00016005,93722.0,93721.0,0.07758]
[1764818180058,0.03016005,93722.0,93721.0,0.0882491]
[1764818180650,0.03016005,93722.0,93721.0,0.18362706]
[1764818181050,0.03016005,93722.0,93721.0,0.18462706]
[1764818184856,0.03016005,93722.0,93721.0,0.0892491]
[1764818187065,0.03016005,93722.0,93721.0,0.18506636]
[1764818189056,0.03016005,93722.0,93721.0,0.0892491]
[1764818189859,0.03016005,93722.0,93721.0,0.18501689]
[1764818190073,0.03016005,93722.0,93721.0,0.0892491]
[1764818190368,0.03016005,93722.0,93721.0,0.18503893]
[1764818191458,0.03016005,93722.0,93721.0,0.0892491]
[1764818191667,0.03016005,93722.0,93721.0,0.18505546]
[1764818191869,0.03016005,93722.0,93721.0,0.0892491]
[1764818192259,0.05,93732.0,93731.0,0.0882479]
[1764818192463,0.03747876,93737.0,93736.0,0.07758]
[1764818192658,0.10527876,93737.0,93736.0,0.07758]
[1764818193468,0.06747876,93737.0,93736.0,0.07758]
[1764818193656,0.03309876,93737.0,93736.0,0.07758]
[1764818194159,0.05,93747.0,93736.0,0.07758]
[1764818194160,0.03748662,93766.0,93765.0,0.09871]
[1764818194364,0.03026662,93766.0,93765.0,0.09871]
[1764818194566,0.10504662,93766.0,93765.0,0.09871]
[1764818195063,0.10515576,93766.0,93765.0,0.09871]
[1764818195272,0.11415576,93766.0,93765.0,0.09971]
[1764818195776,0.03937576,93766.0,93765.0,0.09971]
[1764818196769,0.03037576,93766.0,93765.0,0.09871]
[1764818198071,0.03037576,93766.0,93765.0,0.09971]
[1764818199870,2.07e-06,93766.0,93765.0,0.09971]
[1764818200171,0.00016005,93775.0,93774.0,0.086623]
[1764818200366,0.03016005,93775.0,93774.0,0.086623]
[1764818200968,0.03024139,93775.0,93774.0,0.086623]
[1764818202165,0.03124139,93775.0,93774.0,0.086623]
[1764818206382,0.1023599,93802.0,93801.0,0.08534]
[1764818206673,0.1323599,93802.0,93801.0,0.08534]
[1764818207169,0.1217,93802.0,93801.0,0.08534]
[1764818207373,0.12379015,93802.0,93801.0,0.08534]
[1764818207769,0.12879015,93802.0,93801.0,0.08534]
[1764818208170,0.12879015,93802.0,93801.0,0.10217986]
[1764818208673,0.03709015,93802.0,93801.0,0.10217986]
[1764818209177,1.5e-07,93802.0,93801.0,0.10217986]
[1764818209380,0.00026651,93806.0,93805.0,0.08534]
[1764818209567,0.03026651,93806.0,93805.0,0.08534]
[1764818209766,0.00015997,93811.0,93806.0,0.0106594]
[1764818210072,0.02569,93832.0,93831.0,0.08534]
[1764818210073,0.0917,93832.0,93831.0,0.08534]
[1764818210276,0.1217,93832.0,93831.0,0.08534]
[1764818210479,0.03,93832.0,93831.0,0.08534]
[1764818211578,0.03,93832.0,93824.0,0.08534]
[1764818211579,0.0917,93825.0,93824.0,0.08534]
[1764818211877,0.1217,93825.0,93824.0,0.08534]
[1764818212478,0.1217,93825.0,93824.0,0.11167]
[1764818213670,0.1217,93825.0,93824.0,0.11467]
[1764818214177,0.03,93825.0,93824.0,0.11467]
[1764818220675,0.1217,93825.0,93824.0,0.08834]
[1764818221181,0.1217,93825.0,93824.0,0.003]
[1764818221369,0.1217,93825.0,93824.0,0.00246568]
[1764818221570,0.1217,93825.0,93822.0,0.00015986]
[1764818221571,0.0917,93823.0,93822.0,0.00015986]
[1764818221775,0.1217,93823.0,93822.0,0.00015986]
[1764818222168,0.1217,93823.0,93822.0,0.04345986]
[1764818222368,0.1217,93823.0,93822.0,0.08549986]
[1764818222784,0.1217,93823.0,93822.0,0.08749986]
[1764818223387,0.1217,93823.0,93822.0,0.08849986]
[1764818224082,0.03,93823.0,93822.0,0.08849986]
[1764818224384,0.09016986,93841.0,93840.0,0.12019]
[1764818224578,0.12016986,93841.0,93840.0,0.1308455]
[1764818225083,0.12016986,93841.0,93840.0,0.1044355]
[1764818225779,0.12116986,93841.0,93840.0,0.1044355]
[1764818225981,0.12216986,93841.0,93840.0,0.1044355]
[1764818231087,0.09001,93833.0,93832.0,0.1201]
[1764818231288,0.12001,93833.0,93832.0,0.09378]
[1764818231589,0.12001,93833.0,93832.0,0.1044364]
[1764818231977,0.09001,93829.0,93823.0,0.08645869]
[1764818232182,0.09001,93829.0,93801.0,0.01650332]
[1764818232183,0.09001,93823.0,93808.0,0.0106591]
[1764818232484,0.09001,93804.0,93803.0,0.1044396]
[1764818232790,0.12001,93804.0,93803.0,0.1044396]
[1764818234390,0.12001,93804.0,93803.0,0.1074396]
[1764818234778,0.12001,93804.0,93803.0,0.003]
[1764818234991,0.12001,93804.0,93803.0,0.004]
[1764818235686,0.12001,93804.0,93803.0,0.001]
[1764818235885,0.12001,93804.0,93803.0,0.005]
[1764818236389,0.12001,93804.0,93803.0,0.003]
[1764818236585,0.09001,93795.0,93794.0,0.00015986]
[1764818236782,0.12001,93795.0,93794.0,0.00015986]
[1764818238684,0.12001,93795.0,93794.0,0.01727809]
[1764818239099,0.12001,93795.0,93794.0,0.01827809]
[1764818240897,0.1306706,93795.0,93794.0,0.01827809]
[1764818242701,0.09001,93777.0,93776.0,0.08737353]
[1764818243003,0.09001,93777.0,93775.0,0.0106628]
[1764818243004,0.09001,93776.0,93775.0,0.0567028]
[1764818243194,0.12001,93776.0,93775.0,0.0567028]
[1764818243502,0.14502,93776.0,93775.0,0.01735183]
[1764818243798,0.09001,93769.0,93768.0,0.0106636]
[1764818243995,0.12001,93769.0,93768.0,0.06302333]
[1764818244200,0.12001,93769.0,93768.0,0.09378]
[1764818245103,0.12001,93769.0,93768.0,0.1106405]
[1764818246203,0.12101,93769.0,93768.0,0.1196405]
[1764818246805,0.12101,93769.0,93768.0,0.1226405]
[1764818247403,0.12101,93769.0,93768.0,0.1490505]
[1764818248097,0.12101,93769.0,93768.0,0.0288605]
[1764818256800,0.09024,93738.0,93737.0,0.1011372]
[1764818257105,0.09024,93738.0,93737.0,0.10790058]
[1764818257106,0.12024,93738.0,93737.0,0.10790058]
[1764818257306,0.12024,93738.0,93737.0,0.11856778]
[1764818257700,0.12035378,93738.0,93737.0,0.11856778]
[1764818259508,0.12135378,93738.0,93737.0,0.10790058]
[1764818259811,0.09115,93733.0,93732.0,0.1010878]
[1764818260109,0.12115,93733.0,93732.0,0.1010878]
[1764818261007,0.12115,93733.0,93732.0,0.11805728]
[1764818261408,0.12115,93733.0,93732.0,0.01696948]
[1764818261709,0.09115,93729.0,93728.0,0.09057995]
[1764818262010,0.12115,93729.0,93728.0,0.09057995]
[1764818262315,0.12115,93729.0,93728.0,0.10780839]
[1764818264809,0.12115,93729.0,93728.0,0.01738839]
[1764818269519,0.12115,93729.0,93728.0,0.10780839]
[1764818270216,0.12115,93729.0,93728.0,0.06337839]
[1764818270404,0.12115,93729.0,93728.0,0.01738839]
[1764818270601,0.1318181,93729.0,93728.0,0.01738839]
[1764818272009,0.1318181,93729.0,93728.0,0.06337839]
[1764818272010,0.1328181,93729.0,93728.0,0.06337839]
[1764818272513,0.1318181,93729.0,93728.0,0.01838839]
[1764818272717,0.1338181,93729.0,93728.0,0.01838839]
[1764818273712,0.1338181,93729.0,93728.0,0.01822844]
[1764818273911,0.1338181,93729.0,93728.0,0.00032469]
[1764818275112,0.1338181,93729.0,93728.0,0.01764296]
[1764818277320,0.09115,93727.0,93726.0,0.00026674]
[1764818277526,0.09115,93709.0,93708.0,0.1010905]
[1764818277717,0.12115,93709.0,93708.0,0.1010905]
[1764818278226,0.03,93709.0,93708.0,0.1010905]
[1764818278823,0.12215,93709.0,93708.0,0.12829417]
[1764818279119,0.07542,93709.0,93708.0,0.12829417]
[1764818279325,0.031,93709.0,93708.0,0.12829417]
[1764818280218,0.031,93709.0,93708.0,0.52829417]
[1764818280426,0.00016006,93718.0,93717.0,0.1010895]
[1764818280622,0.03016006,93718.0,93717.0,0.1010895]
[1764818280828,0.09126378,93738.0,93737.0,0.09042]
[1764818281023,0.12126378,93738.0,93737.0,0.09042]
[1764818281417,0.12126378,93738.0,93737.0,0.11675]
[1764818282026,0.03011378,93738.0,93737.0,0.11675]
[1764818282722,0.03411378,93738.0,93737.0,0.11775]
[1764818283122,0.00858438,93738.0,93737.0,0.11775]
[1764818283816,0.05300438,93738.0,93737.0,0.11775]
[1764818284015,0.00858438,93738.0,93737.0,0.11875]
[1764818284215,0.05532438,93738.0,93737.0,0.11875]
[1764818284420,0.10225438,93738.0,93737.0,0.11875]
[1764818285029,0.10025438,93738.0,93737.0,0.09142]
[1764818285229,0.10125438,93738.0,93737.0,0.09142]
[1764818285830,0.10225438,93738.0,93737.0,0.09242]
[1764818286031,0.10225438,93738.0,93737.0,0.09142]
[1764818286224,0.10225438,93738.0,93728.0,0.00016006]
[1764818286225,0.0106681,93729.0,93728.0,0.00016006]
[1764818286430,0.1443381,93729.0,93728.0,0.00016006]
[1764818286621,0.09367,93709.0,93708.0,0.11760417]
[1764818286821,0.12367,93709.0,93708.0,0.11760417]
[1764818287229,0.03,93709.0,93708.0,0.11760417]
[1764818287933,0.03,93709.0,93708.0,0.12160417]
[1764818288627,0.031,93709.0,93708.0,0.13160417]
[1764818292125,0.12467,93709.0,93708.0,0.13160417]
[1764818292828,0.07774,93709.0,93708.0,0.13160417]
[1764818294839,0.12467,93709.0,93708.0,0.13160417]
[1764818295937,0.031,93709.0,93708.0,0.13160417]
[1764818299142,0.12467,93709.0,93708.0,0.13160417]
[1764818300235,0.12467,93709.0,93708.0,0.03120367]
[1764818301536,0.12467,93709.0,93708.0,0.07593367]
[1764818301738,0.12467,93709.0,93708.0,0.12093367]
[1764818301936,0.031,93709.0,93708.0,0.12093367]
[1764818303546,0.12467,93709.0,93708.0,0.12093367]
[1764818304743,0.07774,93709.0,93708.0,0.12093367]
[1764818305140,0.031,93709.0,93708.0,0.12093367]
[1764818305335,0.00016006,93718.0,93717.0,0.1003995]
[1764818305736,0.09367,93740.0,93739.0,0.08973]
[1764818305932,0.1343369,93740.0,93739.0,0.08973]
[1764818306334,0.1043379,93731.0,93730.0,0.08973]
[1764818306539,0.1343379,93731.0,93730.0,0.08973]
[1764818306738,0.1343379,93731.0,93723.0,0.08973]
[1764818306739,0.0106687,93725.0,93723.0,0.08973]
[1764818306938,0.09367,93724.0,93723.0,0.08973]
[1764818307147,0.12367,93724.0,93723.0,0.08973]
[1764818307843,0.07674,93724.0,93723.0,0.08973]
[1764818308045,0.12367,93724.0,93723.0,0.08973]
[1764818308244,0.12467,93724.0,93723.0,0.08973]
[1764818309736,0.031,93724.0,93723.0,0.08973]
[1764818309941,0.09383006,93740.0,93739.0,0.08973]
[1764818310140,0.12383006,93740.0,93739.0,0.08973]
[1764818310450,0.13449696,93740.0,93739.0,0.08973]
[1764818310944,0.12383006,93740.0,93739.0,0.17552556]
[1764818311443,0.12683006,93740.0,93739.0,0.04573]
[1764818311647,0.12683006,93740.0,93739.0,0.001]
[1764818312041,0.09367,93725.0,93721.0,0.00016006]
[1764818312241,0.09367,93722.0,93721.0,0.00016006]
[1764818312544,0.12367,93722.0,93721.0,0.04489006]
[1764818312944,0.12367,93722.0,93721.0,0.00016006]
[1764818313738,0.12667,93722.0,93721.0,0.00116006]
[1764818314343,0.12767,93722.0,93721.0,0.00116006]
[1764818315043,0.12867,93722.0,93721.0,0.00116006]
[1764818315839,0.12867,93722.0,93721.0,0.04589006]
[1764818317848,0.12867,93722.0,93721.0,0.09370006]
[1764818318845,0.035,93722.0,93721.0,0.09370006]
[1764818319048,0.12643,93722.0,93721.0,0.09370006]
[1764818319262,0.12643,93722.0,93721.0,0.18951773]
[1764818319452,0.12243,93722.0,93721.0,0.09270006]
[1764818319651,0.12643,93722.0,93721.0,0.09370006]
[1764818320051,0.12243,93722.0,93721.0,0.09270006]
[1764818320258,0.12643,93722.0,93721.0,0.09370006]
[1764818320749,0.12243,93722.0,93721.0,0.09370006]
[1764818320955,0.12443,93722.0,93721.0,0.09370006]
[1764818321448,0.12343,93722.0,93721.0,0.09370006]
[1764818321650,0.032,93722.0,93721.0,0.09370006]
[1764818323055,0.033,93722.0,93721.0,0.09370006]
[1764818323647,0.032,93722.0,93721.0,0.09370006]
[1764818325050,0.0756,93722.0,93721.0,0.09370006]
[1764818325247,0.12343,93722.0,93721.0,0.09370006]
[1764818325843,0.0756,93722.0,93721.0,0.09370006]
[1764818326349,0.0756,93722.0,93721.0,0.18951773]
[1764818326657,0.032,93722.0,93721.0,0.18951773]
[1764818327349,0.07571,93722.0,93721.0,0.18951773]
[1764818328159,0.07571,93722.0,93721.0,0.09370006]
[1764818328761,0.032,93722.0,93721.0,0.09370006]
[1764818330157,0.032,93722.0,93721.0,0.18950038]
[1764818331255,0.032,93722.0,93721.0,0.09370006]
[1764818341669,0.02183814,93722.0,93721.0,0.09370006]
[1764818342955,0.05,93732.0,93722.0,0.0106689]
[1764818343168,0.00016006,93740.0,93722.0,0.0106689]
[1764818343169,0.00016006,93740.0,93739.0,0.099477]
[1764818343366,0.03016006,93740.0,93739.0,0.099477]
[1764818343763,0.07412006,93740.0,93739.0,0.099477]
[1764818344270,0.03016006,93740.0,93739.0,0.18624514]
[1764818344464,0.03216006,93740.0,93739.0,0.18724514]
[1764818344972,0.12161006,93740.0,93739.0,0.18724514]
[1764818345358,0.12161006,93740.0,93739.0,0.100477]
[1764818345558,0.12161006,93740.0,93739.0,0.001]
[1764818346168,0.08945,93734.0,93733.0,0.1010276]
[1764818346362,0.11945,93734.0,93733.0,0.1010276]
[1764818346570,0.11945,93734.0,93733.0,0.0457]
[1764818347369,0.11945,93734.0,93733.0,0.09036]
[1764818347677,0.12145,93734.0,93733.0,0.09036]
[1764818348163,0.12145,93734.0,93732.0,0.0106677]
[1764818348370,0.08945,93732.0,93731.0,0.09577106]
[1764818348567,0.12945,93732.0,93730.0,0.09577106]
[1764818348769,0.08945,93731.0,93730.0,0.09577106]
[1764818349073,0.11945,93731.0,93730.0,0.0457]
[1764818350063,0.11945,93731.0,93730.0,0.09036]
[1764818350370,0.11945,93731.0,93730.0,0.18613106]
[1764818350765,0.12145,93731.0,93730.0,0.18613106]
[1764818350960,0.07596,93731.0,93730.0,0.20303106]
[1764818351268,0.07596,93731.0,93730.0,0.10726]
[1764818351975,0.12145,93731.0,93730.0,0.09036]
[1764818352165,0.12145,93731.0,93730.0,0.0958478]
[1764818352368,0.11945,93731.0,93730.0,0.0958478]
[1764818352564,0.08945,93725.0,93724.0,0.1415478]
[1764818352771,0.11945,93725.0,93724.0,0.1862078]
[1764818353370,0.11945,93725.0,93724.0,0.09036]
[1764818353669,0.032,93725.0,93724.0,0.09036]
[1764818353877,0.032,93725.0,93724.0,0.1010287]
[1764818355266,0.031,93725.0,93724.0,0.1010287]
[1764818355668,0.07496,93725.0,93724.0,0.1010287]
[1764818356174,0.12045,93725.0,93724.0,0.1010287]
[1764818356379,0.11945,93725.0,93724.0,0.1010287]
[1764818359678,0.11945,93725.0,93721.0,0.08540885]
[1764818359979,0.08945,93722.0,93721.0,0.08540885]
[1764818360277,0.08945,93722.0,93721.0,0.04586006]
[1764818360278,0.11945,93722.0,93721.0,0.04586006]
[1764818360580,0.11945,93722.0,93721.0,0.09604324]
[1764818361081,0.11945,93722.0,93721.0,0.00016006]
[1764818361281,0.11945,93722.0,93721.0,0.04586006]
[1764818361482,0.11945,93722.0,93721.0,0.00016006]
[1764818362385,0.12145,93722.0,93721.0,0.00016006]
[1764818362789,0.11945,93722.0,93721.0,0.00016006]
[1764818362991,0.12345,93722.0,93721.0,0.00116006]
[1764818363885,0.12045,93722.0,93721.0,0.00016006]
[1764818364087,0.12445,93722.0,93721.0,0.00116006]
[1764818365182,0.12445,93722.0,93721.0,0.09152006]
[1764818365389,0.12045,93722.0,93721.0,0.09052006]
[1764818365591,0.12345,93722.0,93721.0,0.09152006]
[1764818365787,0.12345,93722.0,93709.0,0.12175318]
[1764818365788,0.04396,93711.0,93709.0,0.09588318]
[1764818365992,0.04396,93711.0,93702.0,0.02587]
[1764818365993,0.11945,93711.0,93710.0,0.09588318]
[1764818366191,0.08945,93706.0,93705.0,0.09588318]
[1764818366396,0.1001213,93701.0,93700.0,0.00013854]
[1764818366595,0.1301213,93701.0,93700.0,0.00013854]
[1764818367096,0.11945,93701.0,93700.0,0.09049854]
[1764818367800,0.11945,93701.0,93700.0,0.10824561]
[1764818369099,0.11945,93701.0,93700.0,0.10924561]
[1764818369804,0.11945,93701.0,93700.0,0.10824561]
[1764818369990,0.12045,93701.0,93700.0,0.10824561]
[1764818373794,0.12045,93701.0,93700.0,0.01788561]
[1764818374298,0.08235,93687.0,93680.0,0.22944239]
[1764818374596,0.11235,93687.0,93679.0,0.09588318]
[1764818374802,0.11235,93687.0,93686.0,0.01808783]
[1764818375199,0.11247842,93687.0,93686.0,0.01808783]
[1764818376196,0.11247842,93687.0,93686.0,0.01908783]
[1764818376397,0.11347842,93687.0,93686.0,0.02108783]
[1764818382104,0.11347842,93687.0,93686.0,0.10634783]
[1764818383207,0.11347842,93687.0,93686.0,0.06456783]
[1764818383601,0.11347842,93687.0,93686.0,0.02108783]
[1764818386509,0.08,93671.0,93670.0,0.23024953]
[1764818386705,0.11,93671.0,93670.0,0.07998]
[1764818387901,0.11,93671.0,93670.0,0.08398]
[1764818389107,0.11,93671.0,93670.0,0.09598]
[1764818389404,0.111,93671.0,93670.0,0.09598]
[1764818389811,0.111,93671.0,93670.0,0.11365687]
[1764818390708,0.111,93671.0,93670.0,0.07555687]
[1764818390908,0.111,93671.0,93670.0,0.11365687]
[1764818391509,0.031,93671.0,93670.0,0.11365687]
[1764818392617,0.07088,93671.0,93670.0,0.11365687]
[1764818392819,0.031,93671.0,93670.0,0.11365687]
[1764818398410,0.111,93671.0,93670.0,0.11365687]
[1764818398612,0.031,93671.0,93670.0,0.11365687]
[1764818398820,0.07088,93671.0,93670.0,0.11365687]
[1764818400622,0.111,93671.0,93670.0,0.11365687]
[1764818400818,0.111,93671.0,93670.0,0.07555687]
[1764818401115,0.111,93671.0,93670.0,0.03367687]
[1764818401318,0.08,93652.0,93651.0,0.09588318]
[1764818401515,0.08,93650.0,93645.0,0.09588318]
[1764818401714,0.08,93647.0,93642.0,0.09588318]
[1764818401920,0.11,93647.0,93632.0,0.22944239]
[1764818402218,0.11,93647.0,93646.0,0.0184295]
[1764818403023,0.11,93647.0,93646.0,0.0984095]
[1764818403521,0.112,93647.0,93646.0,0.0994095]
[1764818404222,0.032,93647.0,93646.0,0.0994095]
[1764818405718,0.07187,93647.0,93646.0,0.0994095]
[1764818405921,0.11191,93647.0,93646.0,0.0994095]
[1764818406117,0.032,93647.0,93646.0,0.0994095]
[1764818407126,0.11191,93647.0,93646.0,0.0994095]
[1764818407931,0.032,93647.0,93646.0,0.0994095]
[1764818409623,0.00016014,93661.0,93660.0,0.08314]
[1764818409826,0.01227453,93661.0,93660.0,0.093816]
[1764818410126,0.07991,93681.0,93680.0,0.0938136]
[1764818410319,0.10991,93681.0,93680.0,0.08314]
[1764818410825,0.11002514,93681.0,93680.0,0.10768]
[1764818411021,0.11002514,93681.0,93680.0,0.08314]
[1764818411429,0.11002514,93681.0,93680.0,0.10768]
[1764818412025,0.11802514,93681.0,93680.0,0.08314]
[1764818412530,0.11002514,93681.0,93680.0,0.08314]
[1764818412729,0.11802514,93681.0,93680.0,0.08314]
[1764818414130,0.11002514,93681.0,93680.0,0.08314]
[1764818414430,0.11702514,93681.0,93680.0,0.08314]
[1764818415531,0.0244,93672.0,93671.0,0.00016014]
[1764818415731,0.13431,93672.0,93671.0,0.00016014]
[1764818418031,0.13531,93672.0,93660.0,0.010676]
[1764818418334,0.07991,93661.0,93660.0,0.010676]
[1764818418530,0.10991,93661.0,93660.0,0.051696]
[1764818418831,0.10991,93661.0,93660.0,0.093816]
[1764818419538,0.10991,93661.0,93660.0,0.04102]
[1764818419727,0.10991,93661.0,93660.0,0.08314]
[1764818419925,0.11691,93661.0,93660.0,0.08314]
[1764818421429,0.10991,93661.0,93660.0,0.08314]
[1764818421621,0.11891,93661.0,93660.0,0.08314]
[1764818421825,0.10431,93656.0,93655.0,0.09588318]
[1764818422030,0.10431,93648.0,93647.0,0.09588318]
[1764818422229,0.07991,93647.0,93646.0,0.0184295]
[1764818422533,0.10991,93647.0,93646.0,0.0184295]
[1764818423037,0.10991,93647.0,93646.0,0.0594495]
[1764818423823,0.10991,93647.0,93646.0,0.1015695]
[1764818424231,0.10991,93647.0,93646.0,0.0184295]
[1764818425032,0.11691,93647.0,93646.0,0.0594495]
[1764818425232,0.11691,93647.0,93646.0,0.1015695]
[1764818426329,0.11691,93647.0,93646.0,0.0594495]
[1764818428329,0.11691,93647.0,93633.0,0.09588318]
[1764818428330,0.07991,93634.0,93633.0,0.09588318]
[1764818428638,0.03987,93632.0,93631.0,0.0938192]
[1764818428835,0.03,93632.0,93631.0,0.0938192]
[1764818430036,0.03,93632.0,93631.0,0.11225128]
[1764818430238,0.004,93634.0,93633.0,0.08314]
[1764818430532,0.034,93634.0,93633.0,0.08314]
[1764818431235,0.03,93634.0,93633.0,0.08314]
[1764818431828,0.034,93634.0,93633.0,0.08414]
[1764818432335,0.004,93634.0,93633.0,0.08414]
[1764818434137,0.00016014,93643.0,93642.0,0.08052]
[1764818434339,0.03016014,93643.0,93642.0,0.08052]
[1764818435429,0.03616014,93643.0,93642.0,0.08052]
[1764818435624,0.07878014,93643.0,93642.0,0.08052]
[1764818436030,0.12069014,93643.0,93642.0,0.0911981]
[1764818436231,0.07878014,93643.0,93642.0,0.0911981]
[1764818436631,0.12069014,93643.0,93642.0,0.0911981]
[1764818439641,0.03616014,93643.0,93642.0,0.0911981]
[1764818440237,0.07878014,93643.0,93642.0,0.0911981]
[1764818440943,0.006,93643.0,93642.0,0.0911981]
[1764818441243,8.137e-05,93648.0,93647.0,0.0928775]
[1764818441642,0.08453,93670.0,93669.0,0.0928749]
[1764818441835,0.11453,93670.0,93669.0,0.0928749]
[1764818442343,0.07262,93670.0,93669.0,0.0928749]
[1764818442643,0.11459333,93670.0,93669.0,0.0928749]
[1764818444136,0.12159333,93670.0,93669.0,0.0928749]
[1764818444737,0.12259333,93670.0,93669.0,0.0928749]
[1764818445342,0.12259333,93670.0,93669.0,0.17923838]
[1764818445537,0.12359333,93670.0,93669.0,0.0928749]
[1764818446936,0.11559333,93670.0,93669.0,0.0928749]
[1764818447135,0.12359333,93670.0,93669.0,0.17936647]
[1764818447338,0.08168333,93670.0,93669.0,0.17936647]
[1764818448041,0.12316333,93670.0,93669.0,0.17936647]
[1764818448446,0.12216333,93670.0,93669.0,0.17936647]
[1764818448648,0.12316333,93670.0,93669.0,0.17936647]
[1764818449248,0.03906333,93670.0,93669.0,0.17936647]
[1764818449442,0.03806333,93670.0,93669.0,0.17936647]
[1764818449944,0.07748333,93670.0,93669.0,0.17936647]
[1764818450344,0.11896333,93670.0,93669.0,0.17936647]
[1764818450645,0.11796333,93670.0,93669.0,0.17936647]
[1764818451047,0.11096333,93670.0,93669.0,0.17936647]
[1764818451250,0.11696333,93670.0,93669.0,0.17936647]
[1764818452650,0.07548333,93670.0,93669.0,0.17936647]
[1764818453848,0.11696333,93670.0,93669.0,0.17936647]
[1764818454554,0.03606333,93670.0,93669.0,0.17936647]
[1764818454746,0.0809,93720.0,93719.0,0.08195]
[1764818454943,0.1109,93720.0,93719.0,0.08195]
[1764818455243,0.1109,93720.0,93688.0,0.0144]
[1764818455244,0.0809,93705.0,93704.0,0.10638309]
[1764818455438,0.1109,93705.0,93704.0,0.010671]
[1764818455745,0.1109,93705.0,93704.0,0.092621]
[1764818457552,0.1149,93705.0,93704.0,0.093621]
[1764818457952,0.1109,93705.0,93704.0,0.092621]
[1764818458149,0.1159,93705.0,93704.0,0.093621]
[1764818458740,0.1159,93705.0,93704.0,0.011671]
[1764818459648,0.1109,93705.0,93704.0,0.010671]
[1764818459840,0.1109,93705.0,93695.0,0.00016005]
[1764818459841,0.10484,93696.0,93695.0,0.00016005]
[1764818460047,0.0809,93686.0,93685.0,0.0106731]
[1764818460350,0.1109,93686.0,93685.0,0.0106731]
[1764818461650,0.1159,93686.0,93685.0,0.0116731]
[1764818462154,0.1169,93686.0,93685.0,0.0116731]
[1764818463654,0.1179,93686.0,93685.0,0.0116731]
[1764818464354,0.1179,93686.0,93680.0,0.0106737]
[1764818464553,0.08089,93681.0,93680.0,0.0106737]
[1764818464751,0.08317,93677.0,93676.0,0.00016005]
[1764818464949,0.11317,93677.0,93676.0,0.00016005]
[1764818467345,0.12217,93677.0,93676.0,0.00116005]
[1764818467749,0.11417,93677.0,93676.0,0.00016005]
[1764818467950,0.12217,93677.0,93676.0,0.00116005]
[1764818468356,0.11417,93677.0,93676.0,0.00016005]
[1764818468559,0.12217,93677.0,93676.0,0.00116005]
[1764818469561,0.08317,93675.0,93674.0,0.01079111]
[1764818469759,0.11317,93675.0,93674.0,0.01079111]
[1764818470854,0.12217,93675.0,93674.0,0.01179111]
[1764818471055,0.08317,93670.0,93669.0,0.0106749]
[1764818471254,0.11317,93670.0,93669.0,0.0106749]
[1764818472157,0.10952,93664.0,93663.0,0.0106756]
[1764818472360,0.13952,93664.0,93663.0,0.0106756]
[1764818473550,0.05635,93664.0,93658.0,0.0106761]
[1764818473762,0.08317,93659.0,93658.0,0.0106761]
[1764818473962,0.11317,93659.0,93658.0,0.0106761]
[1764818475165,0.12117,93659.0,93658.0,0.001]
[1764818475561,0.08317,93647.0,93646.0,0.01094446]
[1764818475764,0.11317,93647.0,93646.0,0.01094446]
[1764818477361,0.11317,93647.0,93646.0,0.00026696]
[1764818477567,0.11917,93647.0,93646.0,0.00126696]
[1764818480358,0.08317,93635.0,93631.0,0.09474692]